fUSD/lending_fUSD_20250221
["ID","MTS","AMOUNT","RATE_DAILY","PERIOD"]
[353929936,1740153043450,-500.0,0.00013424,2]
[353929938,1740153043459,-500.0,0.00013424,2]
[353929940,1740153043469,-500.0,0.00013424,2]
[353929942,1740153043478,-500.0,0.00013424,2]
[353929946,1740153043488,-500.0,0.00013424,2]
[353929950,1740153043498,-322.60769507,0.00013424,2]
[353929954,1740153043508,-500.0,0.00013424,2]
[353929958,1740153043517,-500.0,0.00013424,2]
[353929962,1740153043527,-500.0,0.00013424,2]
[353929966,1740153043536,-212.47,0.00013424,2]
[353929968,1740153043545,-500.0,0.00013424,2]
[353929970,1740153043555,-502.68440932,0.00013424,2]
[353929972,1740153043564,-1117.35,0.00013424,2]
[353929974,1740153043574,-503.51237108,0.00013424,2]
[353929976,1740153043584,-500.0,0.00013424,2]
[353929978,1740153043594,-500.0,0.00013424,2]
[353929980,1740153043604,-500.0,0.00013424,2]
[353929982,1740153043613,-500.0,0.00013424,2]
[353929983,1740153043623,-500.0,0.00013424,2]
[353929984,1740153043633,-500.0,0.00013424,2]
[353929986,1740153043644,-500.0,0.00013424,2]
[353929987,1740153043653,-500.0,0.00013424,2]
[353929989,1740153043663,-500.4673925,0.00013424,2]
[353929991,1740153043673,-500.0,0.00013424,2]
[353929993,1740153043682,-500.0,0.00013424,2]
[353929995,1740153043692,-500.0,0.00013424,2]
[353929998,1740153043701,-1466.06,0.00013424,2]
[353929999,1740153043711,-500.0,0.00013424,2]
[353930001,1740153043721,-500.0,0.00013424,2]
[353930003,1740153043730,-500.0,0.00013424,2]
[353930005,1740153043740,-500.0,0.00013424,2]
[353930007,1740153043749,-500.0,0.00013424,2]
[353930009,1740153043759,-500.0,0.00013424,2]
[353930011,1740153043771,-500.0,0.00013424,2]
[353930013,1740153043781,-500.0,0.00013424,2]
[353930015,1740153043791,-500.0,0.00013424,2]
[353930017,1740153043800,-500.0,0.00013424,2]
[353930019,1740153043810,-500.0,0.00013424,2]
[353930021,1740153043820,-500.0,0.00013424,2]
[353930023,1740153043829,-500.0,0.00013424,2]
[353930025,1740153043838,-500.0,0.00013424,2]
[353930027,1740153043847,-500.0,0.00013424,2]
[353930029,1740153043858,-176.7473867,0.00013424,2]
[353930031,1740153043872,-500.0,0.00013424,2]
[353930033,1740153043887,-500.0,0.00013424,2]
[353930035,1740153043901,-500.0,0.00013424,2]
[353930037,1740153043910,-500.0,0.00013424,2]
[353930039,1740153043920,-501.22483022,0.00013424,2]
[353930041,1740153043930,-500.0,0.00013424,2]
[353930043,1740153043939,-500.0,0.00013424,2]
[353930045,1740153043948,-500.0,0.00013424,2]
[353930047,1740153043958,-500.0,0.00013424,2]
[353930049,1740153043967,-500.0,0.00013424,2]
[353930051,1740153043977,-500.0,0.00013424,2]
[353930053,1740153043987,-500.0,0.00013424,2]
[353930055,1740153043997,-500.0,0.00013424,2]
[353930057,1740153044009,-500.0,0.00013424,2]
[353930059,1740153044020,-500.0,0.00013424,2]
[353930061,1740153044029,-500.0,0.00013424,2]
[353930063,1740153044042,-736.06,0.00013424,2]
[353930065,1740153044052,-500.0,0.00013424,2]
[353930067,1740153044061,-500.0,0.00013424,2]
[353930069,1740153044072,-500.0,0.00013424,2]
[353930071,1740153044082,-500.0,0.00013424,2]
[353930073,1740153044091,-1337.53,0.00013424,2]
[353930075,1740153044104,-500.0,0.00013424,2]
[353930077,1740153044115,-500.0,0.00013424,2]
[353930079,1740153044125,-1009.88,0.00013424,2]
[353930081,1740153044135,-500.0,0.00013424,2]
[353930083,1740153044147,-504.53108556,0.00013424,2]
[353930085,1740153044157,-500.0,0.00013424,2]
[353930087,1740153044167,-500.0,0.00013424,2]
[353930089,1740153044177,-500.0,0.00013424,2]
[353930091,1740153044187,-500.0,0.00013424,2]
[353930093,1740153044198,-500.84399791,0.00013424,2]
[353930095,1740153044208,-500.0,0.00013424,2]
[353930097,1740153044218,-683.07,0.00013424,2]
[353930099,1740153044228,-500.0,0.00013424,2]
[353930101,1740153044238,-500.0,0.00013424,2]
[353930104,1740153044248,-500.0,0.00013424,2]
[353930106,1740153044259,-1418.67,0.00013424,2]
[353930107,1740153044269,-500.0,0.00013424,2]
[353930109,1740153044279,-987.63,0.00013424,2]
[353930111,1740153044288,-500.0,0.00013424,2]
[353930113,1740153044298,-501.65573775,0.00013424,2]
[353930115,1740153044308,-500.0,0.00013424,2]
[353930117,1740153044318,-718.04,0.00013424,2]
[353930119,1740153044328,-500.0,0.00013424,2]
[353930122,1740153044338,-500.0,0.00013424,2]
[353930123,1740153044347,-500.0,0.00013424,2]
[353930125,1740153044357,-98.86179347,0.00013424,2]
[353930128,1740153044377,-401.13820653,0.00013424,2]
[353930130,1740153044386,-500.0,0.00013424,2]
[353930132,1740153044398,-500.0,0.00013424,2]
[353930134,1740153044408,-500.0,0.00013424,2]
[353930136,1740153044418,-502.23216969,0.00013424,2]
[353930138,1740153044428,-500.0,0.00013424,2]
[353930140,1740153044437,-500.0,0.00013424,2]
[353930142,1740153044447,-970.75,0.00013424,2]
[353930144,1740153044457,-877.89,0.00013424,2]
[353930146,1740153044467,-1996.44,0.00013424,2]
[353930155,1740153044594,-500.0,0.00013424,2]
[353930156,1740153044604,-500.0,0.00013424,2]
[353930157,1740153044614,-500.0,0.00013424,2]
[353930158,1740153044624,-500.0,0.00013424,2]
[353930159,1740153044634,-500.0,0.00013424,2]
[353930160,1740153044644,-500.0,0.00013424,2]
[353930161,1740153044654,-501.34336429,0.00013424,2]
[353930162,1740153044663,-500.0,0.00013424,2]
[353930163,1740153044673,-500.0,0.00013424,2]
[353930164,1740153044682,-500.0,0.00013424,2]
[353930165,1740153044692,-500.0,0.00013424,2]
[353930166,1740153044701,-500.0,0.00013424,2]
[353930168,1740153044710,-500.0,0.00013424,2]
[353930170,1740153044720,-500.0,0.00013424,2]
[353930171,1740153044729,-693.06,0.00013424,2]
[353930173,1740153044738,-500.0,0.00013424,2]
[353930175,1740153044747,-500.0,0.00013424,2]
[353930177,1740153044756,-500.0,0.00013424,2]
[353930179,1740153044766,-2035.86,0.00013424,2]
[353930181,1740153044775,-500.0,0.00013424,2]
[353930183,1740153044784,-498.4213162,0.00013424,2]
[353930185,1740153044793,-500.0,0.00013424,2]
[353930187,1740153044803,-500.0,0.00013424,2]
[353930189,1740153044813,-500.0,0.00013424,2]
[353930191,1740153044822,-500.0,0.00013424,2]
[353930193,1740153044831,-500.0,0.00013424,2]
[353930195,1740153044840,-500.0,0.00013424,2]
[353930197,1740153044850,-500.0,0.00013424,2]
[353930199,1740153044859,-920.29,0.00013424,2]
[353930201,1740153044868,-500.0,0.00013424,2]
[353930203,1740153044878,-500.0,0.00013424,2]
[353930205,1740153044887,-500.0,0.00013424,2]
[353930206,1740153044898,-500.0,0.00013424,2]
[353930208,1740153044908,-500.0,0.00013424,2]
[353930210,1740153044918,-500.0,0.00013424,2]
[353930212,1740153044927,-500.0,0.00013424,2]
[353930214,1740153044937,-500.0,0.00013424,2]
[353930216,1740153044946,-1045.71132688,0.00013424,2]
[353930219,1740153044960,-899.22727238,0.00013424,2]
[353930221,1740153044972,-291.87140074,0.00013424,2]
[353930223,1740153044982,-444.41309926,0.00013424,2]
[353930225,1740153044998,-55.58690074,0.00013424,2]
[353930227,1740153045008,-330.56703394,0.00013424,2]
[353930229,1740153045026,-169.43296606,0.00013424,2]
[353930231,1740153045037,-500.0,0.00013424,2]
[353930233,1740153045047,-500.0,0.00013424,2]
[353930235,1740153045056,-500.0,0.00013424,2]
[353930237,1740153045067,-500.0,0.00013424,2]
[353930239,1740153045076,-500.0,0.00013424,2]
[353930240,1740153045086,-152.26703394,0.00013424,2]
[353930241,1740153045110,-347.73296606,0.00013424,2]
[353930242,1740153045120,-152.26703394,0.00013424,2]
[353930243,1740153045131,-347.73296606,0.00013424,2]
[353930244,1740153045140,-330.80703194,0.00013424,2]
[353930245,1740153045156,-169.19296806,0.00013424,2]
[353930246,1740153045166,-123.86203194,0.00013424,2]
[353930247,1740153045178,-376.13796806,0.00013424,2]
[353930248,1740153045188,-343.26617187,0.00013424,2]
[353930249,1740153045200,-1167.74382813,0.00013424,2]
[353930250,1740153045210,-500.0,0.00013424,2]
[353930251,1740153045220,-500.33725453,0.00013424,2]
[353930252,1740153045230,-500.0,0.00013424,2]
[353930253,1740153045239,-500.0,0.00013424,2]
[353930254,1740153045248,-500.0,0.00013424,2]
[353930255,1740153045258,-500.0,0.00013424,2]
[353930256,1740153045269,-500.0,0.00013424,2]
[353930258,1740153045279,-500.0,0.00013424,2]
[353930260,1740153045288,-500.0,0.00013424,2]
[353930262,1740153045298,-500.0,0.00013424,2]
[353930264,1740153045308,-500.0,0.00013424,2]
[353930266,1740153045318,-3591.71,0.00013424,2]
[353930268,1740153045327,-357.53590221,0.00013424,2]
[353930269,1740153045337,-1012.89,0.00013424,2]
[353930271,1740153045346,-500.0,0.00013424,2]
[353930273,1740153045356,-500.0,0.00013424,2]
[353930275,1740153045366,-500.0,0.00013424,2]
[353930277,1740153045376,-1608.76,0.00013424,2]
[353930279,1740153045386,-331.197362,0.00013424,2]
[353930281,1740153045399,-500.0,0.00013424,2]
[353930283,1740153045410,-1381.97,0.00013424,2]
[353930285,1740153045420,-501.73181401,0.00013424,2]
[353930287,1740153045430,-732.12,0.00013424,2]
[353930289,1740153045439,-500.0,0.00013424,2]
[353930291,1740153045449,-500.0,0.00013424,2]
[353930293,1740153045459,-500.0,0.00013424,2]
[353930295,1740153045469,-522.36754824,0.00013424,2]
[353930297,1740153045479,-500.0,0.00013424,2]
[353930299,1740153045488,-500.0,0.00013424,2]
[353930301,1740153045497,-500.0,0.00013424,2]
[353930303,1740153045507,-500.0,0.00013424,2]
[353930305,1740153045517,-500.0,0.00013424,2]
[353930307,1740153045527,-500.0,0.00013424,2]
[353930309,1740153045536,-1699.32555638,0.00013424,2]
[353930311,1740153045546,-500.0,0.00013424,2]
[353930313,1740153045555,-500.0,0.00013424,2]
[353930315,1740153045565,-1298.45,0.00013424,2]
[353930317,1740153045575,-500.0,0.00013424,2]
[353930319,1740153045584,-500.0,0.00013424,2]
[353930320,1740153045594,-500.0,0.00013424,2]
[353930322,1740153045603,-1158.92,0.00013424,2]
[353930324,1740153045613,-500.0,0.00013424,2]
[353930326,1740153045623,-500.0,0.00013424,2]
[353930328,1740153045632,-1458.06829458,0.00013424,2]
[353930330,1740153045648,-107.99170542,0.00013424,2]
[353930332,1740153045658,-501.369541,0.00013424,2]
[353930334,1740153045667,-500.0,0.00013424,2]
[353930336,1740153045676,-500.0,0.00013424,2]
[353930338,1740153045685,-500.0,0.00013424,2]
[353930340,1740153045694,-500.0,0.00013424,2]
[353930342,1740153045704,-500.0,0.00013424,2]
[353930344,1740153045713,-692.67,0.00013424,2]
[353930346,1740153045723,-500.0,0.00013424,2]
[353930348,1740153045732,-500.0,0.00013424,2]
[353930350,1740153045742,-855.48,0.00013424,2]
[353930352,1740153045752,-1472.62,0.00013424,2]
[353930355,1740153045761,-256.06931154,0.00013424,2]
[353930358,1740153045771,-500.0,0.00013424,2]
[353930360,1740153045781,-500.0,0.00013424,2]
[353930362,1740153045790,-1611.65,0.00013424,2]
[353930364,1740153045799,-500.0,0.00013424,2]
[353930366,1740153045809,-1404.27,0.00013424,2]
[353930368,1740153045819,-269.74555598,0.00013424,2]
[353930370,1740153045828,-500.0,0.00013424,2]
[353930372,1740153045838,-500.0,0.00013424,2]
[353930374,1740153045848,-500.0,0.00013424,2]
[353930376,1740153045857,-535.64,0.00013424,2]
[353930378,1740153045867,-500.0,0.00013424,2]
[353930380,1740153045877,-500.0,0.00013424,2]
[353930382,1740153045886,-593.85,0.00013424,2]
[353930384,1740153045899,-500.0,0.00013424,2]
[353930386,1740153045909,-500.0,0.00013424,2]
[353930388,1740153045919,-545.33,0.00013424,2]
[353930391,1740153045929,-500.0,0.00013424,2]
[353930393,1740153045938,-1136.18,0.00013424,2]
[353930395,1740153045948,-500.0,0.00013424,2]
[353930397,1740153045957,-500.0,0.00013424,2]
[353930399,1740153045966,-500.0,0.00013424,2]
[353930401,1740153045975,-500.0,0.00013424,2]
[353930403,1740153045985,-588.99377253,0.00013424,2]
[353930405,1740153045995,-1149.9,0.00013424,2]
[353930406,1740153046005,-500.0,0.00013424,2]
[353930408,1740153046017,-1001.12,0.00013424,2]
[353930410,1740153046035,-500.0,0.00013424,2]
[353930412,1740153046045,-659.9766201,0.00013424,2]
[353930414,1740153046058,-442.7133799,0.00013424,2]
[353930416,1740153046068,-182.71298942,0.00013424,2]
[353930426,1740153046110,-317.28701058,0.00013424,2]
[353930428,1740153046121,-500.0,0.00013424,2]
[353930430,1740153046131,-500.0,0.00013424,2]
[353930432,1740153046141,-500.0,0.00013424,2]
[353930434,1740153046155,-1203.76,0.00013424,2]
[353930435,1740153046164,-500.0,0.00013424,2]
[353930436,1740153046173,-500.0,0.00013424,2]
[353930437,1740153046183,-500.0,0.00013424,2]
[353930438,1740153046193,-500.0,0.00013424,2]
[353930439,1740153046202,-502.30810413,0.00013424,2]
[353930440,1740153046212,-500.0,0.00013424,2]
[353930441,1740153046222,-1000.0,0.00013424,2]
[353930442,1740153046231,-500.0,0.00013424,2]
[353930443,1740153046242,-500.0,0.00013424,2]
[353930444,1740153046251,-1180.21,0.00013424,2]
[353930445,1740153046260,-500.0,0.00013424,2]
[353930446,1740153046270,-1653.26,0.00013424,2]
[353930447,1740153046279,-600.44,0.00013424,2]
[353930448,1740153046289,-982.42,0.00013424,2]
[353930449,1740153046414,-561.93246369,0.00013424,2]
[353930450,1740153046425,-500.0,0.00013424,2]
[353930451,1740153046436,-1402.49740972,0.00013424,2]
[353930452,1740153047302,-638.73259028,0.00013424,2]
[353930453,1740153047311,-500.0,0.00013424,2]
[353930454,1740153047321,-30.51740972,0.00013424,2]
[353930455,1740153047332,-469.48259028,0.00013424,2]
[353930456,1740153047341,-500.0,0.00013424,2]
[353930457,1740153047350,-500.0,0.00013424,2]
[353930458,1740153047359,-500.0,0.00013424,2]
[353930459,1740153047368,-3361.01739717,0.00013424,2]
[353930460,1740153047380,-252.49260283,0.00013424,2]
[353930461,1740153047389,-1108.35734717,0.00013424,2]
[353930462,1740153047404,-151.82265283,0.00013424,2]
[353930463,1740153047413,-500.0,0.00013424,2]
[353930464,1740153047422,-176.59103371,0.00013424,2]
[353930468,1740153047576,-323.40896629,0.00013424,2]
[353930469,1740153047584,-500.0,0.00013424,2]
[353930470,1740153047594,-500.0,0.00013424,2]
[353930471,1740153047603,-500.0,0.00013424,2]
[353930474,1740153047612,-914.08,0.00013424,2]
[353930476,1740153047621,-1537.89,0.00013424,2]
[353930478,1740153047630,-503.88097422,0.00013424,2]
[353930479,1740153047639,-500.0,0.00013424,2]
[353930480,1740153047650,-500.0,0.00013424,2]
[353930481,1740153047660,-500.0,0.00013424,2]
[353930482,1740153047669,-500.0,0.00013424,2]
[353930483,1740153047679,-500.0,0.00013424,2]
[353930484,1740153047688,-500.0,0.00013424,2]
[353930485,1740153047698,-500.0,0.00013424,2]
[353930486,1740153047707,-500.0,0.00013424,2]
[353930487,1740153047716,-500.0,0.00013424,2]
[353930488,1740153047725,-619.0,0.00013424,2]
[353930490,1740153047734,-500.0,0.00013424,2]
[353930491,1740153047744,-500.0,0.00013424,2]
[353930493,1740153047753,-500.0,0.00013424,2]
[353930495,1740153047762,-500.0,0.00013424,2]
[353930497,1740153047771,-2823.15,0.00013424,2]
[353930499,1740153047780,-500.0,0.00013424,2]
[353930501,1740153047789,-500.0,0.00013424,2]
[353930503,1740153047799,-500.0,0.00013424,2]
[353930505,1740153047808,-500.0,0.00013424,2]
[353930507,1740153047818,-1264.64,0.00013424,2]
[353930509,1740153047827,-500.0,0.00013424,2]
[353930511,1740153047836,-1712.82,0.00013424,2]
[353930513,1740153047845,-500.0,0.00013424,2]
[353930515,1740153047855,-500.0,0.00013424,2]
[353930517,1740153047864,-663.01,0.00013424,2]
[353930518,1740153047873,-1537.02,0.00013424,2]
[353930520,1740153047882,-500.0,0.00013424,2]
[353930522,1740153047892,-500.0,0.00013424,2]
[353930525,1740153047905,-78.60005948,0.00013424,2]
[353930527,1740153047919,-421.39994052,0.00013424,2]
[353930529,1740153047928,-500.0,0.00013424,2]
[353930531,1740153047938,-500.0,0.00013424,2]
[353930533,1740153047948,-500.0,0.00013424,2]
[353930535,1740153047958,-500.0,0.00013424,2]
[353930537,1740153047967,-75.13824884,0.00013424,2]
[353930539,1740153047979,-698.384581,0.00013424,2]
[353930541,1740153047991,-718.39717016,0.00013424,2]
[353930543,1740153048001,-500.0,0.00013424,2]
[353930545,1740153048010,-500.0,0.00013424,2]
[353930547,1740153048023,-183.63360162,0.00013424,2]
[353930549,1740153048040,-316.36639838,0.00013424,2]
[353930551,1740153048050,-215.37410819,0.00013424,2]
[353930554,1740153048070,-723.75589181,0.00013424,2]
[353930556,1740153048080,-508.33402405,0.00013424,2]
[353930558,1740153048090,-1614.4398674,0.00013424,2]
[353930561,1740153048102,-101.0401326,0.00013424,2]
[353930563,1740153048112,-500.0,0.00013424,2]
[353930565,1740153048121,-500.0,0.00013424,2]
[353930566,1740153048130,-515.33688995,0.00013424,2]
[353930569,1740153048141,-1246.53,0.00013424,2]
[353930570,1740153048153,-501.84855561,0.00013424,2]
[353930572,1740153048163,-500.0,0.00013424,2]
[353930574,1740153048172,-573.88,0.00013424,2]
[353930575,1740153048182,-500.0,0.00013424,2]
[353930576,1740153048191,-1238.84,0.00013424,2]
[353930577,1740153048202,-500.0,0.00013424,2]
[353930578,1740153048211,-500.0,0.00013424,2]
[353930579,1740153048221,-500.0,0.00013424,2]
[353930580,1740153048230,-500.0,0.00013424,2]
[353930581,1740153048240,-500.0,0.00013424,2]
[353930582,1740153048249,-500.0,0.00013424,2]
[353930583,1740153048259,-500.0,0.00013424,2]
[353930584,1740153048268,-500.0,0.00013424,2]
[353930585,1740153048277,-1275.93,0.00013424,2]
[353930586,1740153048287,-685.77,0.00013424,2]
[353930587,1740153048296,-500.0,0.00013424,2]
[353930588,1740153048305,-500.0,0.00013424,2]
[353930589,1740153048316,-500.0,0.00013424,2]
[353930590,1740153048326,-341.01657259,0.00013424,2]
[353930591,1740153048336,-500.0,0.00013424,2]
[353930592,1740153048346,-680.52,0.00013424,2]
[353930593,1740153048355,-500.0,0.00013424,2]
[353930594,1740153048365,-500.0,0.00013424,2]
[353930595,1740153048374,-500.0,0.00013424,2]
[353930596,1740153048383,-1446.77,0.00013424,2]
[353930597,1740153048393,-500.0,0.00013424,2]
[353930598,1740153048407,-500.0,0.00013424,2]
[353930599,1740153048416,-500.0,0.00013424,2]
[353930600,1740153048426,-500.0,0.00013424,2]
[353930601,1740153048436,-542.2,0.00013424,2]
[353930602,1740153048446,-500.0,0.00013424,2]
[353930603,1740153048456,-500.0,0.00013424,2]
[353930604,1740153048466,-1244.47,0.00013424,2]
[353930605,1740153048475,-500.0,0.00013424,2]
[353930606,1740153048485,-500.0,0.00013424,2]
[353930607,1740153048494,-500.0,0.00013424,2]
[353930608,1740153048505,-667.21,0.00013424,2]
[353930609,1740153048514,-500.0,0.00013424,2]
[353930610,1740153048523,-500.0,0.00013424,2]
[353930611,1740153048532,-500.0,0.00013424,2]
[353930612,1740153048542,-667.11,0.00013424,2]
[353930613,1740153048553,-500.0,0.00013424,2]
[353930614,1740153048562,-500.0,0.00013424,2]
[353930615,1740153048572,-500.0,0.00013424,2]
[353930616,1740153048581,-500.0,0.00013424,2]
[353930617,1740153048591,-566.01204583,0.00013424,2]
[353930618,1740153048600,-500.0,0.00013424,2]
[353930619,1740153048609,-500.0,0.00013424,2]
[353930620,1740153048618,-2613.46,0.00013424,2]
[353930621,1740153048628,-500.0,0.00013424,2]
[353930622,1740153048637,-500.0,0.00013424,2]
[353930623,1740153048646,-500.0,0.00013424,2]
[353930624,1740153048658,-773.56,0.00013424,2]
[353930625,1740153048667,-457.40305692,0.00013424,2]
[353930626,1740153048677,-500.0,0.00013424,2]
[353930627,1740153048686,-501.96117527,0.00013424,2]
[353930628,1740153048695,-595.4,0.00013424,2]
[353930629,1740153048704,-1253.39,0.00013424,2]
[353930630,1740153048714,-500.0,0.00013424,2]
[353930631,1740153048723,-500.0,0.00013424,2]
[353930632,1740153048732,-500.0,0.00013424,2]
[353930633,1740153048741,-500.0,0.00013424,2]
[353930634,1740153048750,-815.61,0.00013424,2]
[353930635,1740153048759,-500.0,0.00013424,2]
[353930636,1740153048769,-535.73141106,0.00013424,2]
[353930637,1740153048778,-1514.77,0.00013424,2]
[353930638,1740153048788,-500.0,0.00013424,2]
[353930639,1740153048797,-500.0,0.00013424,2]
[353930640,1740153048806,-500.0,0.00013424,2]
[353930641,1740153048816,-500.0,0.00013424,2]
[353930642,1740153048825,-500.0,0.00013424,2]
[353930643,1740153048834,-500.0,0.00013424,2]
[353930644,1740153048843,-500.0,0.00013424,2]
[353930645,1740153048853,-1853.8,0.00013424,2]
[353930646,1740153048862,-500.0,0.00013424,2]
[353930647,1740153048872,-343.52201852,0.00013424,2]
[353930648,1740153048881,-500.0,0.00013424,2]
[353930649,1740153048891,-500.0,0.00013424,2]
[353930650,1740153048904,-500.0,0.00013424,2]
[353930651,1740153048914,-500.0,0.00013424,2]
[353930652,1740153048923,-508.52046026,0.00013424,2]
[353930653,1740153048932,-500.0,0.00013424,2]
[353930654,1740153048942,-1678.76,0.00013424,2]
[353930655,1740153048951,-500.0,0.00013424,2]
[353930656,1740153048961,-515.84812463,0.00013424,2]
[353930657,1740153048970,-532.83529681,0.00013424,2]
[353930658,1740153048980,-500.0,0.00013424,2]
[353930659,1740153048991,-671.48,0.00013424,2]
[353930660,1740153049000,-500.0,0.00013424,2]
[353930661,1740153049010,-500.0,0.00013424,2]
[353930662,1740153049022,-500.0,0.00013424,2]
[353930663,1740153049031,-500.0,0.00013424,2]
[353930664,1740153049041,-2587.43,0.00013424,2]
[353930665,1740153049050,-513.44318726,0.00013424,2]
[353930666,1740153049162,-1533.51,0.00013424,2]
[353930667,1740153049172,-500.0,0.00013424,2]
[353930668,1740153049182,-500.0,0.00013424,2]
[353930669,1740153049192,-500.0,0.00013424,2]
[353930670,1740153049202,-1141.83,0.00013424,2]
[353930671,1740153049211,-500.0,0.00013424,2]
[353930672,1740153049221,-500.0,0.00013424,2]
[353930673,1740153049230,-500.0,0.00013424,2]
[353930674,1740153049240,-500.0,0.00013424,2]
[353930675,1740153049249,-500.0,0.00013424,2]
[353930676,1740153049259,-500.0,0.00013424,2]
[353930677,1740153049269,-500.0,0.00013424,2]
[353930678,1740153049278,-531.84,0.00013424,2]
[353930679,1740153049287,-500.0,0.00013424,2]
[353930680,1740153049296,-500.0,0.00013424,2]
[353930681,1740153049305,-500.0,0.00013424,2]
[353930682,1740153049315,-1621.28,0.00013424,2]
[353930683,1740153049324,-500.0,0.00013424,2]
[353930684,1740153049333,-500.0,0.00013424,2]
[353930685,1740153049342,-500.0,0.00013424,2]
[353930686,1740153049352,-500.0,0.00013424,2]
[353930687,1740153049361,-500.0,0.00013424,2]
[353930688,1740153049370,-500.0,0.00013424,2]
[353930689,1740153049380,-1444.49,0.00013424,2]
[353930690,1740153049389,-500.0,0.00013424,2]
[353930691,1740153049400,-500.0,0.00013424,2]
[353930692,1740153049409,-500.0,0.00013424,2]
[353930693,1740153049420,-500.0,0.00013424,2]
[353930694,1740153049429,-500.0,0.00013424,2]
[353930695,1740153049439,-616.17,0.00013424,2]
[353930696,1740153049449,-500.0,0.00013424,2]
[353930697,1740153049458,-500.0,0.00013424,2]
[353930698,1740153049467,-500.0,0.00013424,2]
[353930699,1740153049477,-1616.22,0.00013424,2]
[353930700,1740153049486,-500.0,0.00013424,2]
[353930701,1740153049495,-771.25,0.00013424,2]
[353930702,1740153049505,-500.0,0.00013424,2]
[353930703,1740153049514,-500.31864885,0.00013424,2]
[353930704,1740153049523,-500.0,0.00013424,2]
[353930705,1740153049533,-500.0,0.00013424,2]
[353930706,1740153049543,-500.0,0.00013424,2]
[353930707,1740153049552,-561.55,0.00013424,2]
[353930708,1740153049561,-500.0,0.00013424,2]
[353930709,1740153049571,-500.0,0.00013424,2]
[353930710,1740153049580,-500.0,0.00013424,2]
[353930711,1740153049589,-500.0,0.00013424,2]
[353930712,1740153049599,-500.0,0.00013424,2]
[353930713,1740153049608,-500.0,0.00013424,2]
[353930714,1740153049618,-500.0,0.00013424,2]
[353930715,1740153049628,-500.0,0.00013424,2]
[353930716,1740153049638,-500.0,0.00013424,2]
[353930717,1740153049649,-3043.07,0.00013424,2]
[353930718,1740153049658,-500.0,0.00013424,2]
[353930719,1740153049668,-500.0,0.00013424,2]
[353930720,1740153049677,-1628.55,0.00013424,2]
[353930721,1740153049687,-502.7901147,0.00013424,2]
[353930722,1740153049697,-500.0,0.00013424,2]
[353930723,1740153049706,-500.0,0.00013424,2]
[353930724,1740153049715,-500.0,0.00013424,2]
[353930725,1740153049726,-1074.82,0.00013424,2]
[353930726,1740153049736,-500.0,0.00013424,2]
[353930727,1740153049746,-500.0,0.00013424,2]
[353930728,1740153049756,-500.0,0.00013424,2]
[353930729,1740153049766,-500.0,0.00013424,2]
[353930730,1740153049775,-555.96,0.00013424,2]
[353930731,1740153049785,-500.0,0.00013424,2]
[353930732,1740153049795,-585.35,0.00013424,2]